Cogmind - Beta 14 @@@ ROGUE MODE // 2024.08.17 @ 13:13:42 Player: dorusv Result: Destroyed by 8R-AWN with 8R-AWN's Boregun Performance ------------- Evolutions (1) 500 Regions Visited (5) 1000 Robots Destroyed (31) 155 Value Destroyed (703) 703 Prototype IDs (1) 20 Alien Tech Used (0) 0 Bonus (300) 300 TOTAL SCORE: 2678 Bonus ------- Aligned with FarCom 300 Cogmind --------- Core Integrity 0/400 Matter 242/300 Energy 69/265 System Corruption 8% Temperature Cool (0) Movement Core (200) Ox3 Location -9/Exiles Parts ------- > --- POWER (1) -------- Improved Ion Engine > --- PROPULSION (2) --- (None) > --- UTILITY (4) ------ Signal Interpreter > --- WEAPON (2) ------- Particle Gun > --- INVENTORY (5) ---- (None) Peak State ------------ > --- POWER ------------ Hybrid Deuterium Engine > --- PROPULSION ------- Light Armored Exoskeleton > --- UTILITY ---------- Small Matter Pod Terrain Scan Processor Melee Analysis Suite Energy Filter > --- WEAPON ----------- Gauss Rifle Assault Cannon > --- INVENTORY -------- Ion Engine Improved Ion Engine Particle Gun Gatling Laser Assault Cannon [Rating: 30] Favorites ----------- Power Ion Engine Engine Ion Engine Propulsion Compact Wheel Leg Light Armored Exoskeleton Wheel Compact Wheel Flight Unit Flight Unit Utility Small Matter Pod Device Improved Terrain Scanner Storage Small Matter Pod Processor Terrain Scan Processor Weapon Light Assault Rifle Energy Gun Medium Laser Energy Cannon Beam Cannon Ballistic Gun Light Assault Rifle Ballistic Cannon Assault Cannon Build | -11 -10 -10 -9 -9 -9 ------- Run | Yrd Mat Min Mat Min Exi Slots Evolved 2 | . . . 2 . . Power . | . . . . . . Propulsion . | . . . . . . Utility 2 | . . . 2 . . Weapon . | . . . . . . Parts Attached 35 | 8 . 7 8 7 5 Power 6 | 1 . 1 1 2 1 Engine 6 | 1 . 1 1 2 1 Core . | . . . . . . Reactor . | . . . . . . Propulsion 7 | 2 . 3 1 1 . Treads . | . . . . . . Leg 3 | . . 1 1 1 . Wheel 2 | 2 . . . . . Hover . | . . . . . . Flight 2 | . . 2 . . . Utility 9 | 2 . 1 2 3 1 Device 5 | 2 . . . 2 1 Storage 1 | . . 1 . . . Processor 3 | . . . 2 1 . Hackware . | . . . . . . Protection . | . . . . . . Artifact . | . . . . . . Weapon 13 | 3 . 2 4 1 3 Energy Gun 6 | 2 . . 2 . 2 Energy Cannon 1 | . . 1 . . . Ballistic Gun 4 | 1 . 1 1 1 . Ballistic Cannon 2 | . . . 1 . 1 Launcher . | . . . . . . Special Weapon . | . . . . . . Impact Weapon . | . . . . . . Slashing Weapon . | . . . . . . Piercing Weapon . | . . . . . . Special Melee Weapon . | . . . . . . Unidentified Prototypes 1 | . . . . . 1 Corrupted Parts 2 | . . . . 2 . System Corruption 8 | . . . . 8 . Parts Lost 19 | . . 6 4 1 8 Power 1 | . . . . . 1 Propulsion 4 | . . 2 2 . . Utility 6 | . . 2 . 1 3 Weapon 8 | . . 2 2 . 4 Highest Loss Streak 8 | . . 2 3 1 8 To Critical Strikes 4 | . . . . . 4 Average Slot Usage (%) 79 | . 100 74 64 84 84 Engine 12 | . 14 14 11 11 10 Leg 7 | . . 6 2 10 10 Wheel 7 | . 28 14 . . . Flight 1 | . . 1 6 . . Device 7 | . 28 6 . 5 13 Storage 6 | . . 2 11 11 10 Processor 10 | . . . 12 25 17 Energy Gun 5 | . 28 6 4 . . Energy Cannon 3 | . . 7 3 . . Ballistic Gun 11 | . . 13 10 11 10 Ballistic Cannon 4 | . . . 3 11 10 Peak Build Rating 30 | 9 9 9 12 30 28 Average Rating 13 | 6 9 6 9 25 23 On Entrance 9 | . 9 9 6 12 22 Naked Turns . | . . . . . . Heaviest Build 24 | 11 11 10 14 20 24 Greatest Support 32 | 32 32 32 10 30 30 Greatest Overweight (x) 5 | . . 2 4 5 2 Average Overweight (x) . | . . . 1 . . Largest Inventory Capacity 5 | 5 5 5 5 5 5 Average Capacity 5 | 5 5 5 5 5 5 Most Carried 5 | 2 2 5 5 5 4 Average Carried 3 | 1 1 2 2 4 3 Final Capacity 5 | 5 5 5 5 5 5 Final Carried 5 | 2 2 5 3 4 . Class Distribution -------------------- 100% | Mutant Dominant Class ---------------- Mutant | -10/Materials Mutant | -10/Mines Mutant | -9/Materials Mutant | -9/Mines Mutant | -9/Exiles Resources | -11 -10 -10 -9 -9 -9 ----------- Run | Yrd Mat Min Mat Min Exi Matter Collected 750 | 270 7 167 113 193 . Remotely . | . . . . . . Salvage Created 877 | 188 35 240 276 133 5 Parts 48 | 9 2 11 20 6 . Haulers Intercepted . | . . . . . . Recyclers Shooed . | . . . . . . Parts Field Recycled . | . . . . . . Retrieved Matter . | . . . . . . Parts Self-Destructed . | . . . . . . Prevented . | . . . . . . Kills | -11 -10 -10 -9 -9 -9 ------- Run | Yrd Mat Min Mat Min Exi Combat Hostiles Destroyed 24 | . 1 10 7 5 1 Guns 9 | . 1 3 2 3 . Cannons 15 | . . 7 5 2 1 Classes Destroyed 8 | 2 1 1 2 1 1 Tunneler 6 | 6 . . . . . Recycler 1 | 1 . . . . . Watcher 1 | . . . 1 . . Swarmer 8 | . . 6 . 2 . Grunt 13 | . 1 4 6 2 . Brawler 1 | . . . . 1 . Sentry 1 | . . . 1 . . Assembled 1 | . . . . . 1 Best Kill Streak 3 | 2 1 3 3 3 1 Combat Bots Only 3 | . 1 3 3 3 1 Max Kills in Single Turn 1 | 1 1 1 1 1 1 Gunslinging . | . . . . . . Exploded . | . . . . . . Melee . | . . . . . . Uniques/NPCs Destroyed . | . . . . . . Combat | -11 -10 -10 -9 -9 -9 -------- Run | Yrd Mat Min Mat Min Exi Hostile Shots Fired 244 | . 7 67 46 20 104 Missed 58 | . 1 13 9 4 31 Damage Taken 2409 | . 72 626 471 203 1037 Core 621 | . 12 196 132 33 248 Absorbed by Shields . | . . . . . . Core Remaining (%) 58 | 100 . 16 . . . Volleys Fired 111 | 25 7 29 30 12 8 Largest 2 | 2 2 2 2 2 2 Hottest 124 | 100 100 100 85 72 124 Shots Fired 212 | 50 14 58 49 25 16 Gun 159 | 50 14 44 31 13 7 Cannon 53 | . . 14 18 12 9 Launcher . | . . . . . . Special . | . . . . . . Kinetic 92 | . . 26 26 25 15 Thermal 120 | 50 14 32 23 . 1 Explosive . | . . . . . . Electromagnetic . | . . . . . . Robot Hit Streak 8 | 6 7 8 6 2 6 Robot Miss Streak 5 | 3 4 4 5 3 3 Penetration Max 1 | . . . . 1 . Secondary Targets 2 | . . 1 1 . . Max Gunslinging Chain 1 | . . 1 1 . . Shots Hit Robots 116 | 30 8 29 28 13 8 Core Hits 51 | 9 2 16 12 7 5 Critical Kills . | . . . . . . Critical Parts Destroyed . | . . . . . . Critical Strikes 6 | 4 . 2 . . . Burn 6 | 4 . 2 . . . Melee Attacks . | . . . . . . Impact . | . . . . . . Slashing . | . . . . . . Piercing . | . . . . . . Sneak Attacks . | . . . . . . Combat Hostiles . | . . . . . . Follow-up Attacks . | . . . . . . Damage Inflicted 1759 | 376 105 399 401 320 158 Guns 1065 | 375 99 225 157 145 64 Cannons 658 | . . 159 244 161 94 Explosions . | . . . . . . Melee . | . . . . . . Ramming 36 | 1 6 15 . 14 . Kinetic 738 | . . 101 176 306 155 Thermal 985 | 375 99 283 225 . 3 Explosive . | . . . . . . Electromagnetic . | . . . . . . Impact . | . . . . . . Slashing . | . . . . . . Piercing . | . . . . . . Highest Corruption 8 | . . 4 . 8 8 Average Corruption 6 | . . 4 . 7 8 Corruption Purged . | . . . . . . Corruption Blocked . | . . . . . . Effects 57 | . . 20 . 24 13 Message Errors 11 | . . 4 . 4 3 Matter Fused 11 | . . 5 . 4 2 Heat Flow Errors 8 | . . 2 . 4 2 Energy Discharges 7 | . . 2 . 4 1 Parts Rejected 2 | . . . . 1 1 Data Loss (minor) 8 | . . 4 . 4 . Data Loss (major) 4 | . . 2 . 2 . Misfires 5 | . . 1 . 1 3 Alerts 1 | . . . . . 1 Overload Shots . | . . . . . . Overflow Damage 9 | . . . 4 5 . Projectiles 9 | . . . 4 5 . Explosions . | . . . . . . Melee . | . . . . . . Knockbacks 3 | . . . . 2 1 Impact . | . . . . . . Kinetic 3 | . . . . 2 1 Secondary . | . . . . . . Self-Inflicted Damage 10 | . 3 7 . . . Shots . | . . . . . . Rammed 8 | 1 1 6 . . . Targets Rammed 13 | 1 1 6 2 3 . Kicked 5 | . . . 2 3 . Crushed . | . . . . . . Highest Temperature 351 | 195 199 351 322 255 186 Average Temperature 101 | 62 93 129 131 86 40 Received Heat Transfer 651 | . 36 267 237 51 60 Effects 2 | . . . 1 1 . Energy Bleed 1 | . . . . 1 . Damage (minor) 1 | . . . 1 . . Siege Activations . | . . . . . . Robots Corrupted . | . . . . . . Combat Hostiles . | . . . . . . Parts Fried 1 | . . 1 . . . Impact Corruptions . | . . . . . . Robots Melted . | . . . . . . Combat Hostiles . | . . . . . . Parts Melted 6 | 2 . 3 1 . . Heat Transferred 3089 | 1406 296 851 518 . 18 Parts Sabotaged . | . . . . . . Parts Stolen . | . . . . . . Parts Stripped . | . . . . . . Power Chain Reactions . | . . . . . . Alert | -11 -10 -10 -9 -9 -9 ------- Run | Yrd Mat Min Mat Min Exi Peak Influence 185 | 35 72 125 185 134 . Initial 72 | . 22 27 27 72 . Average 51 | 15 34 40 84 70 . Maximum Alert Level . | . . . . . . Low Security (%) 100 | 100 100 100 100 100 . Level 1 . | . . . . . . Level 2 . | . . . . . . Level 3 . | . . . . . . Level 4 . | . . . . . . Level 5 . | . . . . . . High Security . | . . . . . . Max Security . | . . . . . . Squads Dispatched 2 | . 1 . 1 . . Investigation 2 | . 1 . 1 . . Extermination . | . . . . . . Reinforcement . | . . . . . . Assault . | . . . . . . Garrison . | . . . . . . Intercept . | . . . . . . Searches Triggered . | . . . . . . Construction Impeded . | . . . . . . Haulers Reinforced . | . . . . . . Active Scanning Responses . | . . . . . . Cargo Convoy Interrupts . | . . . . . . Stealth | -11 -10 -10 -9 -9 -9 --------- Run | Yrd Mat Min Mat Min Exi Distress Signals 1 | . . . 1 . . Communications Jammed . | . . . . . . Distress Signals . | . . . . . . Times Spotted 35 | . 1 10 9 7 8 Peak Tracking Total 9 | . 1 3 3 3 9 Tactical Retreats 2 | . . 1 . 1 . Traps | -11 -10 -10 -9 -9 -9 ------- Run | Yrd Mat Min Mat Min Exi Traps Triggered 1 | . . . . 1 . Indirectly . | . . . . . . Trap Hack Attempts . | . . . . . . Triggered . | . . . . . . Disarmed . | . . . . . . Reprogrammed . | . . . . . . Reused . | . . . . . . Traps Extracted . | . . . . . . Installed . | . . . . . . Triggered 1 | . . 1 . . . Machines | -11 -10 -10 -9 -9 -9 ---------- Run | Yrd Mat Min Mat Min Exi Machines Disabled 3 | . . . . 1 2 Max in Single Turn 1 | . . . . 1 1 Machines Repaired . | . . . . . . Machines Dismantled . | . . . . . . Machines Sabotaged . | . . . . . . Overloaded Fab Kills . | . . . . . . Hacking | -11 -10 -10 -9 -9 -9 --------- Run | Yrd Mat Min Mat Min Exi Machines Accessed 5 | . 3 . 1 1 . Terminals 3 | . 2 . 1 . . Fabricators . | . . . . . . Repair Stations . | . . . . . . Recycling Units 1 | . 1 . . . . Scanalyzers . | . . . . . . Garrison Access . | . . . . . . Total Hacks 17 | . 13 . 3 1 . Successful 9 | . 6 . 2 1 . Failed 8 | . 7 . 1 . . Catastrophic 2 | . 2 . . . . Database Lockouts . | . . . . . . Manual 5 | . 4 . . . 1 Terminals 12 | . 9 . 3 . . Fabricators . | . . . . . . Repair Stations . | . . . . . . Recycling Units 4 | . 4 . . . . Scanalyzers . | . . . . . . Garrison Access . | . . . . . . Terminal Hacks 6 | . 3 . 2 1 . Open Door 1 | . . . . 1 . Alert Level 1 | . 1 . . . . Investigation Status 1 | . . . 1 . . Reinforcement Status 1 | . 1 . . . . Hauler Manifests 1 | . 1 . . . . Zone Layout 1 | . . . 1 . . Fabricator Hacks . | . . . . . . Repair Station Hacks . | . . . . . . Recycling Unit Hacks 3 | . 3 . . . . Recycle Component 1 | . 1 . . . . Process 1 | . 1 . . . . Retrieve Components 1 | . 1 . . . . Scanalyzer . | . . . . . . Garrison Access Hacks . | . . . . . . Unauthorized Hacks . | . . . . . . Terminals . | . . . . . . Fabricators . | . . . . . . Repair Stations . | . . . . . . Recycling Units . | . . . . . . Scanalyzers . | . . . . . . Garrison Access . | . . . . . . Data Cores Recovered . | . . . . . . Used . | . . . . . . Hacking Detections 4 | . 3 . 1 . . Full Trace Events 4 | . 3 . 1 . . Feedback Events . | . . . . . . Feedback Blocked . | . . . . . . Robot Schematics Acquired . | . . . . . . Robots Built . | . . . . . . Authchips . | . . . . . . Time . | . . . . . . Total Robot Build Rating . | . . . . . . Part Schematics Acquired . | . . . . . . Parts Built . | . . . . . . Authchips . | . . . . . . Time . | . . . . . . Total Part Build Rating . | . . . . . . Parts Repaired . | . . . . . . Time . | . . . . . . Parts Recycled 1 | . 1 . . . . Recycled Matter 20 | . 20 . . . . Retrieved Matter . | . . . . . . Retrieved Components 1 | . 1 . . . . Parts Scanalyzed . | . . . . . . Part Schematics Acquired . | . . . . . . Parts Damaged . | . . . . . . Bothacking | -11 -10 -10 -9 -9 -9 ------------ Run | Yrd Mat Min Mat Min Exi Used RIF Installer . | . . . . . . Robots Hacked . | . . . . . . Non-combat . | . . . . . . Combat . | . . . . . . Robot Hacks Applied . | . . . . . . Relay Couplers Released . | . . . . . . Fabnet Peak Effective % . | . . . . . . Robots Rewired . | . . . . . . Allies Hacked . | . . . . . . Hacks Repelled . | . . . . . . Allies | -11 -10 -10 -9 -9 -9 -------- Run | Yrd Mat Min Mat Min Exi Total Allies 1 | . . . . 1 . Largest Group 1 | . . . . 1 . Highest-Rated Group 31 | . . . . 31 . Highest-Rated Ally 31 | . . . . 31 . Total Orders . | . . . . . . Ally Attacks . | . . . . . . Total Damage . | . . . . . . Kills . | . . . . . . Allies Corrupted . | . . . . . . Allies Melted . | . . . . . . Intel | -11 -10 -10 -9 -9 -9 ------- Run | Yrd Mat Min Mat Min Exi Robot Analysis Total . | . . . . . . Derelict Logs Recovered 3 | . . 1 . 2 . Drone Launches . | . . . . . . Drone Recoveries . | . . . . . . Exploration | -11 -10 -10 -9 -9 -9 ------------- Run | Yrd Mat Min Mat Min Exi Turns Passed 3169 | 296 202 1167 324 808 372 Spaces Moved 2197 | 212 120 963 133 523 246 Core 76 | 9 . . 46 20 1 Treads . | . . . . . . Legs 1201 | . . 431 22 503 245 Wheels 795 | 203 120 472 . . . Hover . | . . . . . . Flight 125 | . . 60 65 . . Fastest Speed 50 | 50 100 100 117 140 140 Average Speed 123 | 97 100 110 173 144 140 Slowest Speed 300 | 100 100 200 250 300 150 Overloaded Moves . | . . . . . . Propulsion Burnouts . | . . . . . . Robots Hopped . | . . . . . . Cave-ins Triggered . | . . . . . . Exploration Rate (%) 40 | 7 11 100 9 73 42 Regions Visited 5 Branch Regions 3 Pre-discovered Areas 2 | . . 1 . 1 . Known Exits Taken 1 | . . . . 1 . Unknown Exits Taken 4 | 1 1 1 1 . . Scrap Searched 4 | . . 3 . 1 . Spaces Dug . | . . . . . . Terrain Destroyed 6 | . . . 1 4 1 Melee . | . . . . . . Projectile 6 | . . . 1 4 1 AOE . | . . . . . . Terrain Rammed . | . . . . . . Walls Destroyed . | . . . . . . Machines Disabled . | . . . . . . Actions | -11 -10 -10 -9 -9 -9 --------- Run | Yrd Mat Min Mat Min Exi Total 2436 | 247 188 1011 183 547 260 Wait 63 | . 60 3 . . . Move 2192 | 211 119 962 132 522 246 Hop . | . . . . . . Pick Up 9 | 1 1 3 3 1 . Fast Attach 21 | 8 . 4 3 5 1 Attach 11 | . . 2 4 1 4 Detach 7 | 1 . 1 3 1 1 Swap 3 | . . 1 1 1 . Drop 6 | . . . 5 1 . Fire 111 | 25 7 29 30 12 8 Melee . | . . . . . . Ram 8 | 1 1 6 . . . Kick 5 | . . . 2 3 . Crush . | . . . . . . Escape Stasis . | . . . . . . Rewire . | . . . . . . Trap . | . . . . . . Miscellaneous . | . . . . . . Route ------- -11/Scrapyard -10/Materials -10/Mines (discovered 2 exits: *Mat x2) -9/Materials -9/Mines (discovered 3 exits: *Mat x2 / *Exi) -9/Exiles History --------- Turn | Location | Event 15 | -11/Scrapyard | Discovered new exit (range 15) 297 | -11/Scrapyard | Entered Materials 314 | -10/Materials | Build established: Mutant 335 | -10/Materials | Discovered new exit (range 13) 499 | -10/Materials | Entered Mines 971 | -10/Mines | Discovered new exit (range 10) 1013 | -10/Mines | Core integrity fell below 50% 1070 | -10/Mines | Discovered new exit (range 4) 1221 | -10/Mines | Learned location of Zion (-7) 1559 | -10/Mines | Core integrity fell below 20% 1666 | -10/Mines | Entered Materials 1666 | -9/Materials | Evolved 2 slots: Utility x2 1792 | -9/Materials | Lost 3 parts (1n2w) 1959 | -9/Materials | Discovered new exit (range 8) 1990 | -9/Materials | Entered Mines 2009 | -9/Mines | Met a Derelict who couldn't figure out how to use a Trap Extractor 2108 | -9/Mines | Discovered new exit (range 12) 2118 | -9/Mines | Learned location of 1 exit from Proximity Caves 2177 | -9/Mines | Received a Mining Laser from a helpful Derelict 2426 | -9/Mines | Learned location of Storage (-7) 2465 | -9/Mines | Joined a pair of Derelicts in attacking an 0b10 outpost 2558 | -9/Mines | A weapon hastily lodged in a ceiling crevice suddenly fell to the ground 2702 | -9/Mines | Discovered new exit (range 5) 2709 | -9/Mines | Identified exit to Materials 2789 | -9/Mines | Deemed a non-threat by the Exiles lab entrance 2790 | -9/Mines | Discovered new exit (range 5) 2796 | -9/Mines | Identified exit to Exiles 2798 | -9/Mines | Entered Exiles 2853 | -9/Exiles | Met 8R-AWN 2885 | -9/Exiles | Met EX-HEX 2943 | -9/Exiles | Met EX-BIN 2975 | -9/Exiles | Aligned with FarCom system 2976 | -9/Exiles | Given EX-Vault access code 3018 | -9/Exiles | Opened EX-Vault 3036 | -9/Exiles | Found Prototype Device 3036 | -9/Exiles | Identified Cloak of Protection 3069 | -9/Exiles | Warned to stay clear of 0b10 Research branches 3133 | -9/Exiles | Attacked by the Exiles 3145 | -9/Exiles | Core integrity fell below 50% 3165 | -9/Exiles | Core integrity fell below 20% 3170 | -9/Exiles | Destroyed by 8R-AWN with 8R-AWN's Boregun Last Messages --------------- Exoskeleton rejected. 03157_ Gauss Rifle destroyed. 03157_ Penetrated by HV Slug. 03157_ Ion Engine destroyed. 03157_ Penetrated by HV Slug. 03158_ Sml. Matter Pod destroyed. 03160_ Assembled Analyzer disabled. 03160_ Penetrated by HV Slug. 03164_ Critical hit (Destroy). 03164_ Gatling Laser destroyed. 03164_ Penetrated by HV Slug. 03164_ 8R-AWN knocked back. 03166_ Machine disabled. 03168_ HV Slug penetrates Wall. 03168_ HV Slug penetrates Machine. 03168_ Machine disabled. 03168_ HV Slug penetrates Machine. 03168_ Critical hit (Destroy). 03168_ Assault Cannon destroyed. 03170_ Penetrated by HV Slug. Map ----- +----------------------------------------------------+ | """#??????????????????????????????????? | | """#??????????????????????????????????? | | """#??????????????????????????????????? | | """""?????????????????????????????????? | | """#??????????????????????????????????? | | "X" """"??????????????????????????????????? | | """ #??????????????????????????????????? | | """""""""#??????????????????????????????????? | | ###########??????????????????????????????????? | | #????????????????????????????????????????????? | | #????????????????????????????????????????????? | | ##???????????????????????????????????????????? | | ##???###########????????????????????????????? | | #####"""""""""##???????????????????????????? | | " "" """"##??????????????????????????? | | " " #??????????????????????????? | | " """#??????????????????????????? | | "a"#???????????#####??????????? | | " "##?????????##" #??????????? | | ""###???????#" #??????????? | | "" " "#??????##" ##?????????? | | #""" "#????### ###???????? | | #####""" ##???# ######### | | ????##""" ##?## #""""## | | ?????#"""" ### | | ?????#"" % %=@ g % ## * | | ?????"""" ;### | | ????? % "###"""""#### | | ??? #"""##?#######??#### | | ??? a ######??????????????## | | ?? a ##????????????????????? | | ?? " a ##?????????????????????? | | ?? "" "" a""#??????????????????????? | | ??##""" " " ""#" % "##??????????????????????? | | ?????###""" """##"""""""##???????????????????????? | | ????????##""""??#########????????????????????????? | | ??????????##?????????????????????????????????????? | | ?????????????????????????????????????????????????? | | ?????????????????????????????????????????????????? | | ?????????????????????????????????????????????????? | | ?????????????????????????????????????????????????? | | ?????????????????????????????????????????????????? | | ?????????????????????????????????????????????????? | | ?????????????????????????????????????????????????? | | ?????????????????????????????????????????????????? | | ?????????????????????????????????????????????????? | | ?????????????????????????????????????????????????? | | ?????????????????????????????????????????????????? | | ?????????????????????????????????????????????????? | | ?????????????????????????????????????????????????? | +----------------------------------------------------+ Best States ------------- Heat Dissipation 38 Energy Generation 12 Energy Capacity 800 Matter Stores 350 Matter Capacity 350 Sight Range 16 Terrain Scan Range 16 Terrain Scan Density 85 Cloak Strength 5 Evasion (%) 55 Melee Accuracy 5 Energy Filtering 30 Item Schematics ----------------- None Robot Schematics ------------------ None Fabricated ------------ Nothing Alien Tech Used ----------------- None Achievements -------------- Please Form A Line Challenges ------------ None Game ------ Seed ConstructJunkNanovents Manual? 0 Play Time 00:27:10 Cumulative 6.3 hours Start 2024.08.17 @ 11:18:39 End 2024.08.17 @ 13:13:42 Sessions 2 Manual Loads 0 Difficulty Rogue Special Mode None Game No. 25 Rogue 22 Adventurer 3 Explorer 0 Win Type - Total 0 Types 0/0/0/0/0/0/0/0/0 Lore% 9 Gallery% 12 Achievement% 16 Wizard Run 0 Options --------- Layout 1 ASCII 0 Keyboard 1 Movement Arrows Keybinds 0 Fullscreen 1 Font 28/Smallcaps Map View 50x43 Zoom Use 0% Tactical HUD 1 Map Filters NONE Filters NONE Steam 1 RUN: 023942e5-88ea-4fc9-8249-2a946aa2fa7a